fUSD/lending_fUSD_20240114
["ID","MTS","AMOUNT","RATE_DAILY","PERIOD"]
[311544527,1705211440636,-300.0,0.00024225,2]
[311544528,1705211440645,-167.0,0.00024297,2]
[311544529,1705211440655,-338.69,0.00024341,2]
[311544530,1705211440664,-169.06,0.00024416,2]
[311544531,1705211440673,-163.5,0.00024543,2]
[311544532,1705211440683,-250.0,0.00024658,2]
[311544533,1705211440693,-964.68497451,0.00024863,2]
[311544534,1705211440708,-1583.00550367,0.00025,2]
[311544535,1705211440717,-167.23848345,0.00025,2]
[311544536,1705211440726,-303.21915795,0.00025,2]
[311544537,1705211440736,-1070.01161759,0.00025,2]
[311544538,1705211440745,-387.54188947,0.00025,2]
[311544539,1705211440755,-693.2548073,0.00025,2]
[311544540,1705211440764,-1247.79685735,0.00025,2]
[311544541,1705211440774,-253.47646232,0.00025,2]
[311544542,1705211440783,-710.30311205,0.00025,2]
[311544543,1705211440793,-255.48888284,0.00025,2]
[311544544,1705211440802,-2804.01741076,0.00025,2]
[311544545,1705211440810,-430.0,0.00025,2]
[311544546,1705211440827,-393.35,0.00025,2]
[311544547,1705211440859,-650.0,0.00025,2]
[311544548,1705211440869,-150.0,0.00025072,2]
[311544549,1705211440878,-150.0,0.00025072,2]
[311544550,1705211440887,-569.31,0.00025073,2]
[311544551,1705211440897,-169.06,0.00025097,2]
[311544552,1705211440906,-167.0,0.00025099,2]
[311544553,1705211440915,-1797.36684811,0.000251,2]
[311544554,1705211440924,-338.69,0.0002532,2]
[311544555,1705211440934,-163.5,0.00025373,2]
[311544556,1705211440943,-50000.0,0.00025489,2]
[311544557,1705211440955,-50000.0,0.00025489,2]
[311544558,1705211440964,-50000.0,0.00025489,2]
[311544559,1705211440974,-273.8303687,0.0002549,2]
[311544560,1705211440983,-964.68497451,0.00025661,2]
[311544561,1705211440992,-169.06,0.00025777,2]
[311544562,1705211441002,-500.0,0.00025863,2]
[311544563,1705211441012,-167.0,0.00025901,2]
[311544564,1705211441021,-569.31,0.00025954,2]
[311544565,1705211441030,-200.91298037,0.00026,2]
[311544566,1705211441040,-3398.90812809,0.00026,2]
[311544567,1705211441050,-440.23630575,0.00026,2]
[311544568,1705211441059,-150.0,0.00026079,2]
[311544569,1705211441073,-163.5,0.00026203,2]
[311544570,1705211441082,-462.80575144,0.00026256,2]
[311544571,1705211441092,-157.55915276,0.00026256,2]
[311544572,1705211441102,-272.45974467,0.00026256,2]
[311544573,1705211441111,-338.69,0.00026298,2]
[311544574,1705211441121,-205.0,0.00026325,7]
[311544575,1705211441130,-331.87,0.00026357,2]
[311544576,1705211441140,-266.301935,0.000264,2]
[311544577,1705211441150,-964.68497451,0.0002646,2]
[311544578,1705211441163,-19615.7,0.00026575,2]
[311544579,1705211441172,-540.218,0.000267,2]
[311544580,1705211441182,-1234.0,0.000267,2]
[311544581,1705211441191,-1252.0,0.000267,2]
[311544582,1705211441203,-1932.0,0.000267,2]
[311544583,1705211441212,-19688.0,0.000267,2]
[311544584,1705211441222,-167.0,0.00026703,2]
[311544585,1705211441232,-478.71,0.00026707,2]
[311544586,1705211441242,-569.31,0.00026835,2]
[311544587,1705211441253,-651.61,0.00026848,2]
[311544588,1705211441262,-5000.0,0.000269,2]
[311544589,1705211441275,-155.0,0.00027,2]
[311544590,1705211441285,-223.17193358,0.00027,2]
[311544591,1705211441296,-230.48830562,0.00027,2]
[311544592,1705211441305,-230.48830562,0.00027,2]
[311544593,1705211441315,-230.48830562,0.00027,2]
[311544594,1705211441324,-230.48830562,0.00027,2]
[311544595,1705211441334,-230.48830562,0.00027,2]
[311544596,1705211441344,-230.48830562,0.00027,2]
[311544597,1705211441354,-230.48830562,0.00027,2]
[311544598,1705211441364,-230.48830562,0.00027,2]
[311544599,1705211441374,-230.48830562,0.00027,2]
[311544600,1705211441384,-230.48830562,0.00027,2]
[311544601,1705211441394,-230.48830562,0.00027,2]
[311544602,1705211441405,-230.48830562,0.00027,2]
[311544603,1705211441419,-230.48830562,0.00027,2]
[311544604,1705211441428,-230.48830562,0.00027,2]
[311544605,1705211441438,-230.48830562,0.00027,2]
[311544606,1705211441449,-230.48830562,0.00027,2]
[311544607,1705211441459,-230.48830562,0.00027,2]
[311544608,1705211441469,-230.48830562,0.00027,2]
[311544609,1705211441479,-230.48830562,0.00027,2]
[311544610,1705211441488,-230.48830562,0.00027,2]
[311544611,1705211441499,-230.48830562,0.00027,2]
[311544612,1705211441509,-230.48830562,0.00027,2]
[311544613,1705211441519,-230.48830562,0.00027,2]
[311544614,1705211441529,-230.48830562,0.00027,2]
[311544615,1705211441538,-230.48830562,0.00027,2]
[311544616,1705211441548,-230.48830562,0.00027,2]
[311544617,1705211441558,-230.48830562,0.00027,2]
[311544618,1705211441567,-230.48830562,0.00027,2]
[311544619,1705211441576,-230.48830562,0.00027,2]
[311544620,1705211441586,-230.48830562,0.00027,2]
[311544621,1705211441595,-230.48830562,0.00027,2]
[311544622,1705211441605,-230.48830562,0.00027,2]
[311544623,1705211441614,-230.48830562,0.00027,2]
[311544624,1705211441623,-230.48830562,0.00027,2]
[311544625,1705211441632,-230.48830562,0.00027,2]
[311544626,1705211441642,-230.48830562,0.00027,2]
[311544627,1705211441651,-230.48830562,0.00027,2]
[311544628,1705211441661,-230.48830562,0.00027,2]
[311544629,1705211441670,-230.48830562,0.00027,2]
[311544630,1705211441679,-230.48830562,0.00027,2]
[311544631,1705211441689,-230.48830562,0.00027,2]
[311544632,1705211441698,-230.48830562,0.00027,2]
[311544633,1705211441707,-230.48830562,0.00027,2]
[311544634,1705211441716,-230.48830562,0.00027,2]
[311544635,1705211441726,-230.48830562,0.00027,2]
[311544636,1705211441736,-230.48830562,0.00027,2]
[311544637,1705211441745,-230.48830562,0.00027,2]
[311544638,1705211441756,-230.48830562,0.00027,2]
[311544639,1705211441765,-230.48830562,0.00027,2]
[311544640,1705211441774,-230.48830562,0.00027,2]
[311544641,1705211441784,-964.68497451,0.00027258,2]
[311544642,1705211441794,-210.0,0.0002726,2]
[311544643,1705211441805,-338.69,0.00027277,2]
[311544644,1705211441817,-156.80288878,0.000273,2]
[311544645,1705211441827,-156.80288872,0.000273,2]
[311544646,1705211441838,-156.80288872,0.000273,2]
[311544647,1705211441847,-156.80288872,0.000273,2]
[311544648,1705211441857,-156.80288872,0.000273,2]
[311544649,1705211441868,-156.80288872,0.000273,2]
[311544650,1705211441878,-156.80288872,0.000273,2]
[311544651,1705211441888,-156.80288872,0.000273,2]
[311544652,1705211441898,-155.0,0.00027397,2]
[311544653,1705211441909,-223.65766151,0.00027397,2]
[311544654,1705211441919,-1484.75,0.00027397,2]
[311544655,1705211441929,-250.0,0.00027397,2]
[311544656,1705211441939,-172.95116857,0.000274,2]
[311544657,1705211441951,-250.0,0.000274,2]
[311544658,1705211441961,-500.0,0.00027443,7]
[311544659,1705211441971,-7972.41923056,0.000275,2]
[311544660,1705211441982,-185.47415034,0.000275,2]
[311544661,1705211441993,-167.0,0.00027505,2]
[311544662,1705211442003,-1484.75,0.00027556,2]
[311544663,1705211442014,-1484.75,0.00027714,2]
[311544664,1705211442025,-569.31,0.00027716,2]
[311544665,1705211442035,-1484.75,0.00027872,2]
[311544666,1705211442045,-194.0,0.00027908,2]
[311544667,1705211442055,-688.18453345,0.00028,2]
[311544668,1705211442065,-202.89143555,0.00028,2]
[311544669,1705211442075,-6148.22144652,0.00028,2]
[311544670,1705211442086,-1484.75,0.0002803,2]
[311544671,1705211442097,-964.68497451,0.00028057,2]
[311544672,1705211442115,-1484.75,0.00028189,2]
[311544673,1705211442126,-210.0,0.0002825,2]
[311544674,1705211442136,-338.69,0.00028255,2]
[311544675,1705211442146,-167.0,0.00028307,2]
[311544676,1705211442158,-1484.75,0.00028347,2]
[311544677,1705211442170,-1484.75,0.00028505,2]
[311544678,1705211442181,-569.31,0.00028597,2]
[311544679,1705211442192,-331.87,0.00028621,2]
[311544680,1705211442204,-1484.75,0.00028664,2]
[311544681,1705211442213,-1324.84880585,0.00028766,4]
[311544682,1705211442223,-155.0,0.00028767,2]
[311544683,1705211442233,-1000.0,0.000288,2]
[311544684,1705211442245,-1484.75,0.00028822,2]
[311544685,1705211442258,-964.68497451,0.00028855,2]
[311544686,1705211442268,-1000.0,0.000289,2]
[311544687,1705211442277,-551.75018371,0.00029,2]
[311544688,1705211442287,-160.22080585,0.00029,2]
[311544689,1705211442298,-36176.46602991,0.00029,15]
[311544690,1705211442309,-32467.0,0.00029,2]
[311544691,1705211442598,-500.0,0.00029023,7]
[311544692,1705211442610,-1000.0,0.000291,2]
[311544693,1705211442620,-1000.0,0.000291,2]
[311544694,1705211442630,-1000.0,0.000292,2]
[311544695,1705211442640,-6000.0,0.000292,2]
[311544696,1705211442650,-210.0,0.0002923,2]
[311544697,1705211442662,-210.0,0.0002923,2]
[311544698,1705211442672,-338.69,0.00029234,2]
[311544699,1705211442684,-1000.0,0.000293,2]
[311544700,1705211442694,-478.71,0.00029377,2]
[311544701,1705211442711,-1000.0,0.000294,2]
[311544702,1705211442722,-187.78095067,0.000295,3]
[311544703,1705211442735,-1000.0,0.000295,2]
[311544704,1705211442746,-651.61,0.00029533,2]
[311544705,1705211442756,-1000.0,0.000296,2]
[311544706,1705211442767,-964.68497451,0.00029653,2]
[311544707,1705211442777,-205.0,0.00029692,12]
[311544708,1705211442788,-1252.0,0.000297,2]
[311544709,1705211442798,-1234.0,0.000297,2]
[311544710,1705211442809,-10159.064,0.000297,2]
[311544711,1705211442820,-22335.75274887,0.000297,2]
[311544712,1705211442831,-1000.0,0.000297,2]
[311544713,1705211442842,-175.36700291,0.000298,2]
[311544714,1705211442853,-1000.0,0.000298,2]
[311544715,1705211442863,-1256.74777668,0.000298,2]
[311544716,1705211442874,-1000.0,0.000299,2]
[311544717,1705211442884,-20000.0,0.000299,2]
[311544718,1705211442895,-299.389427,0.000299,2]
[311544719,1705211442906,-1280.2356884,0.000299,2]
[311544720,1705211442916,-406.8,0.00029911,2]
[311544721,1705211442926,-5357.17958112,0.00029997,2]
[311544722,1705211442936,-1293.46890019,0.00029999,2]
[311544723,1705211442946,-150.0,0.00029999,2]
[311544724,1705211442958,-500.0,0.00029999,2]
[311544725,1705211442968,-623.98624362,0.00029999,2]
[311544726,1705211442977,-599.04706233,0.00029999,2]
[311544727,1705211442987,-498.93691111,0.00029999,2]
[311544728,1705211442996,-963.1095227,0.00029999,2]
[311544729,1705211443006,-599.04706233,0.00029999,2]
[311544730,1705211443016,-963.1095227,0.00029999,2]
[311544731,1705211443026,-500.0,0.00029999,2]
[311544732,1705211443036,-599.04706233,0.00029999,2]
[311544733,1705211443045,-963.1095227,0.00029999,2]
[311544734,1705211443055,-599.04706233,0.00029999,2]
[311544735,1705211443065,-599.04706233,0.00029999,2]
[311544736,1705211443075,-963.1095227,0.00029999,2]
[311544737,1705211443084,-500.0,0.00029999,2]
[311544739,1705211443094,-599.04706233,0.00029999,2]
[311544740,1705211443103,-963.1095227,0.00029999,2]
[311544741,1705211443113,-599.04706233,0.00029999,2]
[311544742,1705211443122,-963.1095227,0.00029999,2]
[311544743,1705211443131,-599.04706233,0.00029999,2]
[311544744,1705211443141,-963.1095227,0.00029999,2]
[311544745,1705211443151,-599.04706233,0.00029999,2]
[311544746,1705211443164,-963.1095227,0.00029999,2]
[311544747,1705211443173,-370.02922669,0.00029999,2]
[311544748,1705211443183,-963.1095227,0.00029999,2]
[311544749,1705211443192,-599.04706233,0.00029999,2]
[311544750,1705211443203,-963.1095227,0.00029999,2]
[311544751,1705211443213,-599.04706233,0.00029999,2]
[311544752,1705211443223,-500.0,0.00029999,2]
[311544754,1705211443232,-599.04706233,0.00029999,2]
[311544755,1705211443244,-963.1095227,0.00029999,2]
[311544756,1705211443254,-963.1095227,0.00029999,2]
[311544757,1705211443264,-599.04706233,0.00029999,2]
[311544758,1705211443274,-963.1095227,0.00029999,2]
[311544759,1705211443284,-963.1095227,0.00029999,2]
[311544760,1705211443293,-599.04706233,0.00029999,2]
[311544761,1705211443303,-599.04706233,0.00029999,2]
[311544762,1705211443312,-963.1095227,0.00029999,2]
[311544763,1705211443322,-599.04706233,0.00029999,2]
[311544764,1705211443332,-599.04706233,0.00029999,2]
[311544765,1705211443341,-599.04706233,0.00029999,2]
[311544766,1705211443352,-599.04706233,0.00029999,2]
[311544767,1705211443361,-599.04706233,0.00029999,2]
[311544768,1705211443371,-963.1095227,0.00029999,2]
[311544769,1705211443381,-599.04706233,0.00029999,2]
[311544770,1705211443390,-963.1095227,0.00029999,2]
[311544771,1705211443400,-963.1095227,0.00029999,2]
[311544772,1705211443410,-963.1095227,0.00029999,2]
[311544773,1705211443419,-963.1095227,0.00029999,2]
[311544774,1705211443429,-599.04706233,0.00029999,2]
[311544775,1705211443439,-963.1095227,0.00029999,2]
[311544776,1705211443449,-599.04706233,0.00029999,2]
[311544777,1705211443459,-500.0,0.00029999,2]
[311544778,1705211443468,-599.04706233,0.00029999,2]
[311544779,1705211443478,-599.04706233,0.00029999,2]
[311544780,1705211443487,-963.1095227,0.00029999,2]
[311544781,1705211443497,-963.1095227,0.00029999,2]
[311544782,1705211443507,-599.04706233,0.00029999,2]
[311544783,1705211443516,-599.04706233,0.00029999,2]
[311544784,1705211443526,-963.1095227,0.00029999,2]
[311544785,1705211443535,-599.04706233,0.00029999,2]
[311544786,1705211443546,-599.04706233,0.00029999,2]
[311544787,1705211443555,-963.1095227,0.00029999,2]
[311544788,1705211443565,-963.1095227,0.00029999,2]
[311544789,1705211443574,-963.1095227,0.00029999,2]
[311544790,1705211443583,-599.04706233,0.00029999,2]
[311544791,1705211443593,-599.04706233,0.00029999,2]
[311544792,1705211443602,-599.04706233,0.00029999,2]
[311544793,1705211443611,-599.04706233,0.00029999,2]
[311544794,1705211443621,-599.04706233,0.00029999,2]
[311544795,1705211443630,-599.04706233,0.00029999,2]
[311544796,1705211443640,-963.1095227,0.00029999,2]
[311544797,1705211443649,-963.1095227,0.00029999,2]
[311544798,1705211443659,-963.1095227,0.00029999,2]
[311544799,1705211443668,-155.9965609,0.00029999,2]
[311544800,1705211443678,-847.53637997,0.00029999,2]
[311544801,1705211443687,-847.53637997,0.00029999,2]
[311544802,1705211443699,-847.53637997,0.00029999,2]
[311544803,1705211443709,-847.53637997,0.00029999,2]
[311544804,1705211443720,-847.53637997,0.00029999,2]
[311544805,1705211443732,-847.53637997,0.00029999,2]
[311544806,1705211443742,-847.53637997,0.00029999,2]
[311544807,1705211443752,-847.53637997,0.00029999,2]
[311544808,1705211443763,-847.53637997,0.00029999,2]
[311544809,1705211443773,-500.0,0.00029999,2]
[311544810,1705211443784,-500.0,0.00029999,2]
[311544811,1705211443794,-847.53637997,0.00029999,2]
[311544812,1705211443804,-500.0,0.00029999,2]
[311544813,1705211443815,-500.0,0.00029999,2]
[311544814,1705211443824,-500.0,0.00029999,2]
[311544815,1705211443834,-333.90119892,0.00029999,2]
[311544816,1705211443843,-500.0,0.00029999,2]
[311544817,1705211443855,-500.0,0.00029999,2]
[311544818,1705211443865,-1059.42047495,0.00029999,2]
[311544819,1705211443876,-165.28655857,0.00029999,2]
[311544820,1705211443886,-150.0,0.00029999,2]
[311544821,1705211443898,-150.0,0.00029999,2]
[311544822,1705211443909,-385.66863668,0.00029999,2]
[311544823,1705211443922,-52227.45475219,0.0003,4]
[311544824,1705211443932,-323.96454152,0.0003,2]
[311544825,1705211443941,-58256.65071081,0.0003,2]
[311544826,1705211443951,-156.46334342,0.0003,4]
[311544827,1705211443962,-40208.94123231,0.0003,2]
[311544828,1705211443971,-304.56207544,0.0003,4]
[311544829,1705211443981,-155.0,0.0003,4]
[311544830,1705211443990,-1087.0,0.0003,3]
[311544831,1705211443999,-70000.0,0.0003,3]
[311544832,1705211444009,-2000.0,0.0003,2]
[311544833,1705211444018,-677.90141978,0.0003,4]
[311544834,1705211444027,-1177.62483638,0.0003,2]
[311544835,1705211444037,-72834.74040093,0.0003,4]
[311544836,1705211444047,-155.0,0.0003,2]
[311544837,1705211444056,-581.92014557,0.0003,2]
[311544838,1705211444066,-19005.00681836,0.0003,4]
[311544839,1705211444076,-933.64378065,0.0003,4]
[311544840,1705211444087,-691.08946322,0.0003,2]
[311544841,1705211444098,-9627.24499354,0.0003,2]
[311544842,1705211444107,-6853.14826371,0.0003,4]
[311544843,1705211444116,-1572.87627363,0.0003,2]
[311544844,1705211444126,-595.9681963,0.0003,4]
[311544845,1705211444135,-461.93477702,0.0003,4]
[311544846,1705211444146,-2500.0,0.0003,2]
[311544847,1705211444156,-10616.24673101,0.0003,2]
[311544848,1705211444167,-1000.0,0.0003,14]
[311544849,1705211444177,-500.0,0.0003,2]
[311544850,1705211444187,-1502.00448653,0.0003,3]
[311544851,1705211444197,-61962.4126,0.0003,5]
[311544852,1705211444207,-2326.47677628,0.0003,4]
[311544853,1705211444217,-8831.43547175,0.0003,4]
[311544854,1705211444229,-2550.6211898,0.0003,4]
[311544855,1705211444239,-813.43239814,0.0003,4]
[311544856,1705211444249,-308587.54398008,0.0003,4]
[311544857,1705211444259,-1000.0,0.0003,2]
[311544858,1705211444269,-150.1,0.0003,2]
[311544859,1705211444280,-8750.0,0.0003,2]
[311544860,1705211444290,-332.2099903,0.0003,7]
[311544861,1705211444300,-643.12,0.0003,2]
[311544862,1705211444309,-8750.0,0.0003,2]
[311544863,1705211444319,-157.79,0.0003,2]
[311544864,1705211444329,-157.79,0.0003,2]
[311544865,1705211444339,-157.79,0.0003,2]
[311544866,1705211444349,-157.79,0.0003,2]
[311544867,1705211444358,-398.34,0.0003,2]
[311544868,1705211444368,-202.0,0.0003,2]
[311544869,1705211444378,-1821.0,0.0003,2]
[311544870,1705211444388,-78599.0,0.0003,2]
[311544871,1705211444398,-210.5805006,0.0003,2]
[311544872,1705211444407,-305.08,0.0003,2]
[311544873,1705211444417,-3000.0,0.0003,2]
[311544874,1705211444426,-3000.0,0.0003,2]
[311544875,1705211444436,-3000.0,0.0003,2]
[311544876,1705211444446,-3000.0,0.0003,2]
[311544877,1705211444457,-3000.0,0.0003,2]
[311544878,1705211444467,-3000.0,0.0003,2]
[311544879,1705211444477,-450.0,0.0003002,3]
[311544880,1705211444487,-450.0,0.0003002,3]
[311544881,1705211444497,-450.0,0.0003002,3]
[311544882,1705211444506,-462.80575144,0.00030036,2]
[311544883,1705211444516,-157.55915276,0.00030036,2]
[311544884,1705211444525,-272.45974467,0.00030036,2]
[311544885,1705211444535,-1000.0,0.00030043,2]
[311544886,1705211444544,-1324.84880585,0.00030046,4]
[311544887,1705211444553,-1000.0,0.00030052,7]
[311544888,1705211444563,-1000.0,0.00030053,7]
[311544889,1705211444572,-1000.0,0.00030053,7]
[311544890,1705211444581,-1000.0,0.00030054,7]
[311544891,1705211444590,-8750.0,0.00030075,2]
[311544892,1705211444599,-1826.32,0.00030075,2]
[311544893,1705211444608,-151.0,0.00030075,2]
[311544894,1705211444618,-151.0,0.00030089,2]
[311544895,1705211444627,-251.60155128,0.000301,4]
[311544896,1705211444636,-166.44469479,0.000301,2]
[311544897,1705211444645,-1000.0,0.000301,2]
[311544898,1705211444654,-401.27,0.00030118,2]
[311544899,1705211444663,-200.0,0.00030126,7]
[311544900,1705211444672,-236.29370138,0.00030126,7]
[311544901,1705211444683,-200.0,0.00030126,7]
[311544902,1705211444692,-6241.85,0.00030126,10]
[311544903,1705211444702,-5357.17958112,0.00030133,2]
[311544904,1705211444711,-150.0,0.00030135,2]
[311544905,1705211444720,-150.0,0.00030135,2]
[311544906,1705211444729,-500.0,0.00030136,2]
[311544907,1705211444738,-500.0,0.00030136,2]
[311544908,1705211444747,-164.99094998,0.00030136,2]
[311544909,1705211444757,-503.17422391,0.00030136,2]
[311544910,1705211444766,-500.0,0.00030136,2]
[311544911,1705211444775,-634.16,0.00030136,2]
[311544912,1705211444784,-634.16,0.00030136,2]
[311544913,1705211444794,-634.16,0.00030136,2]
[311544914,1705211444805,-634.16,0.00030136,2]
[311544915,1705211444816,-634.16,0.00030136,2]
[311544916,1705211444826,-634.16,0.00030136,2]
[311544917,1705211444837,-634.16,0.00030136,2]
[311544918,1705211444847,-634.16,0.00030136,2]
[311544919,1705211444856,-634.16,0.00030136,2]
[311544920,1705211444867,-634.16,0.00030136,2]
[311544921,1705211444876,-634.16,0.00030136,2]
[311544922,1705211444890,-634.16,0.00030136,2]
[311544923,1705211444900,-634.16,0.00030136,2]
[311544924,1705211444911,-634.16,0.00030136,2]
[311544925,1705211444920,-634.16,0.00030136,2]
[311544926,1705211444930,-634.16,0.00030136,2]
[311544927,1705211444939,-634.16,0.00030136,2]
[311544928,1705211444948,-634.16,0.00030136,2]
[311544929,1705211445015,-634.16,0.00030136,2]
[311544930,1705211445024,-634.16,0.00030136,2]
[311544931,1705211445036,-634.16,0.00030136,2]
[311544932,1705211445045,-634.16,0.00030136,2]
[311544933,1705211445054,-634.16,0.00030136,2]
[311544934,1705211445063,-634.23400772,0.00030136,2]
[311544935,1705211445073,-500.0,0.00030136,2]
[311544936,1705211445083,-500.0,0.00030136,2]
[311544937,1705211445092,-500.0,0.00030136,2]
[311544938,1705211445101,-500.0,0.00030136,2]
[311544939,1705211445111,-500.0,0.00030136,2]
[311544940,1705211445120,-500.0,0.00030136,2]
[311544941,1705211445129,-500.0,0.00030136,15]
[311544942,1705211445138,-513.77768319,0.00030136,15]
[311544943,1705211445149,-508.87390958,0.00030136,2]
[311544944,1705211445158,-500.0,0.00030136,2]
[311544945,1705211445170,-516.14449964,0.00030136,2]
[311544946,1705211445179,-500.0,0.00030136,2]
[311544947,1705211445188,-500.0,0.00030136,2]
[311544948,1705211445197,-519.61108451,0.00030136,2]
[311544949,1705211445208,-500.0,0.00030136,2]
[311544950,1705211445217,-500.0,0.00030136,2]
[311544951,1705211445226,-522.90329039,0.00030136,2]
[311544952,1705211445236,-500.0,0.00030136,2]
[311544953,1705211445245,-546.46956666,0.00030136,2]
[311544954,1705211445255,-500.0,0.00030136,2]
[311544955,1705211445264,-520.42007556,0.00030136,2]
[311544956,1705211445274,-500.0,0.00030136,2]
[311544957,1705211445283,-525.24946079,0.00030136,2]
[311544958,1705211445292,-500.0,0.00030136,2]
[311544959,1705211445301,-518.40438662,0.00030136,2]
[311544960,1705211445310,-500.0,0.00030136,2]
[311544961,1705211445320,-519.87634009,0.00030136,2]
[311544962,1705211445329,-500.0,0.00030136,2]
[311544963,1705211445338,-536.93771749,0.00030136,2]
[311544964,1705211445347,-516.457505,0.00030136,2]
[311544965,1705211445356,-527.27481633,0.00030136,2]
[311544966,1705211445366,-280.02881472,0.00030136,2]
[311544967,1705211445375,-557.50234471,0.00030136,2]
[311544968,1705211445384,-505.19343631,0.00030136,2]
[311544969,1705211445393,-503.80109686,0.00030136,2]
[311544970,1705211445402,-500.0,0.00030136,2]
[311544971,1705211445411,-301.03732307,0.00030136,2]
[311544972,1705211445420,-319.70254075,0.00030136,2]
[311544973,1705211445429,-500.0,0.00030136,2]
[311544974,1705211445438,-529.2239849,0.00030136,2]
[311544975,1705211445448,-514.31162737,0.00030136,2]
[311544976,1705211445458,-500.0,0.00030136,2]
[311544977,1705211445467,-510.3541778,0.00030136,2]
[311544978,1705211445476,-505.19370226,0.00030136,2]
[311544979,1705211445485,-475.99050547,0.00030136,2]
[311544980,1705211445494,-506.51681093,0.00030136,2]
[311544981,1705211445503,-500.0,0.00030136,2]
[311544982,1705211445512,-500.0,0.00030136,2]
[311544983,1705211445521,-267.71416603,0.00030136,2]
[311544984,1705211445531,-561.17878625,0.00030136,2]
[311544985,1705211445540,-500.0,0.00030136,2]
[311544986,1705211445549,-517.42423589,0.00030136,2]
[311544987,1705211445558,-500.0,0.00030136,2]
[311544988,1705211445567,-515.6608277,0.00030136,2]
[311544989,1705211445576,-511.16092332,0.00030136,2]
[311544990,1705211445586,-509.08061114,0.00030136,2]
[311544991,1705211445595,-511.01358381,0.00030136,2]
[311544992,1705211445604,-500.0,0.00030136,2]
[311544993,1705211445613,-506.85525906,0.00030136,2]
[311544994,1705211445622,-160.28723158,0.00030136,2]
[311544995,1705211445631,-507.74869331,0.00030136,2]
[311544996,1705211445640,-512.95424016,0.00030136,2]
[311544997,1705211445649,-500.0,0.00030136,2]
[311544998,1705211445658,-525.10856878,0.00030136,2]
[311544999,1705211445667,-434.88692757,0.00030136,2]
[311545000,1705211445676,-500.0,0.00030136,2]
[311545001,1705211445686,-291.84140466,0.00030136,2]
[311545002,1705211445695,-500.0,0.00030136,2]
[311545003,1705211445705,-505.08128665,0.00030136,2]
[311545004,1705211445714,-509.59237462,0.00030136,2]
[311545005,1705211445723,-505.23449369,0.00030136,2]
[311545006,1705211445731,-504.22716254,0.00030136,2]
[311545007,1705211445740,-500.0,0.00030136,2]
[311545008,1705211445749,-514.91939782,0.00030136,2]
[311545009,1705211445758,-504.44192979,0.00030136,2]
[311545010,1705211445767,-542.51960801,0.00030136,2]
[311545011,1705211445776,-504.96775356,0.00030136,2]
[311545012,1705211445785,-520.48099107,0.00030136,2]
[311545013,1705211445794,-500.0,0.00030136,10]
[311545014,1705211445804,-500.0,0.00030136,10]
[311545015,1705211445813,-550.66838366,0.00030136,10]
[311545016,1705211445822,-500.59900848,0.00030136,2]
[311545017,1705211445831,-505.9331475,0.00030136,2]
[311545018,1705211445841,-518.47251748,0.00030136,2]
[311545019,1705211445850,-162.04200735,0.00030136,2]
[311545020,1705211445859,-502.62167107,0.00030136,2]
[311545021,1705211445868,-234.77999856,0.00030136,2]
[311545022,1705211445877,-636.82459585,0.00030136,2]
[311545023,1705211445886,-544.83112478,0.00030136,2]
[311545024,1705211445895,-500.0,0.00030136,2]
[311545025,1705211445904,-521.7992883,0.00030136,2]
[311545026,1705211445913,-516.01230481,0.00030136,2]
[311545027,1705211445922,-506.30713283,0.00030136,2]
[311545028,1705211445931,-506.25625703,0.00030136,2]